bitfinex/quotes_ETHUSD_20240719
["timestamp","ask_amount","ask_price","bid_price","bid_amount"]
[1721431022681,3.60258,3521.7,3521.6,0.04948435]
[1721431023180,3.60258,3521.7,3520.7,2.55626]
[1721431023181,2.55584,3521.4,3520.7,2.55626]
[1721431023397,2.55584,3521.4,3520.2,1.18832872]
[1721431023398,2.4141,3521.0,3520.3,9.89656]
[1721431023689,3.6032,3520.9,3520.3,2.55656]
[1721431024189,3.6032,3520.9,3520.0,2.55679]
[1721431024390,1.047,3520.5,3519.7,7.34]
[1721431024546,2.55667,3520.2,3519.7,7.34]
[1721431024887,2.55667,3520.2,3519.6,2.55706]
[1721431026047,1.047,3520.1,3519.3,2.55732]
[1721431026393,2.55686,3520.0,3519.3,3.60646844]
[1721431028047,5.88299,3519.9,3519.3,1.04914844]
[1721431028282,5.88299,3519.9,3519.2,2.55738]
[1721431029292,1.047,3519.7,3519.2,2.55738]
[1721431029457,1.047,3519.7,3519.3,2.55732]
[1721431030015,5.88299,3519.9,3519.3,2.55732]
[1721431030897,2.55696,3519.8,3519.3,2.55732]
[1721431031193,2.55696,3519.8,3519.1,2.55742]
[1721431031388,2.55696,3519.8,3519.1,3.419256]
[1721431031595,2.55696,3519.8,3519.2,2.55739]
[1721431033051,3.3261,3519.9,3519.3,2.55732]
[1721431034357,3.3261,3519.9,3519.4,2.55725]
[1721431035163,2.2791,3519.9,3519.4,2.55725]
[1721431035466,2.2791,3519.9,3519.5,2.55717]
[1721431035651,2.4537,3520.3,3519.8,2.55694]
[1721431035847,2.4537,3520.3,3519.6,2.5571]
[1721431036083,2.4537,3520.3,3519.9,0.04904724]
[1721431036287,2.4537,3520.3,3519.6,2.5571]
[1721431036516,2.4537,3520.3,3520.0,0.04899213]
[1721431036714,2.954722,3520.3,3519.6,2.5571]
[1721431036910,3.60367,3520.2,3519.6,2.5571]
[1721431037113,3.60367,3520.2,3519.7,0.04915747]
[1721431038421,2.55675,3520.1,3519.7,0.04915747]
[1721431038585,2.55675,3520.1,3519.4,2.55722]
[1721431038785,2.55675,3520.1,3519.5,2.60643772]
[1721431039011,5.0103,3520.3,3519.6,2.55709]
[1721431039181,5.0103,3520.3,3519.7,0.04915747]
[1721431039884,2.55675,3520.1,3519.7,0.04915747]
[1721431040097,5.0103,3520.3,3519.6,2.55707]
[1721431040277,5.0103,3520.3,3519.8,0.04910236]
[1721431040481,5.0103,3520.3,3519.7,0.04915747]
[1721431040683,5.0103,3520.3,3519.9,0.04904724]
[1721431040921,5.0103,3520.3,3519.8,0.04910236]
[1721431041095,5.0103,3520.3,3520.0,0.04899213]
[1721431041293,5.0103,3520.3,3519.9,0.04904724]
[1721431041503,5.0103,3520.3,3520.1,0.04893702]
[1721431041698,2.55667,3520.2,3520.0,0.04899213]
[1721431042017,2.55667,3520.2,3519.6,2.55707]
[1721431042327,2.55667,3520.2,3519.6,3.907194]
[1721431043989,2.4537,3520.3,3519.7,2.55702]
[1721431044201,5.0103,3520.3,3519.7,2.55702]
[1721431048431,2.4537,3520.3,3519.8,2.55694]
[1721431048934,2.4537,3520.3,3519.7,2.55702]
[1721431050300,2.4537,3520.3,3519.8,2.55695]
[1721431051097,2.4537,3520.3,3519.9,0.04903408]
[1721431053619,5.0103,3520.3,3519.9,0.04903408]
[1721431053820,5.0103,3520.3,3519.6,2.55704]
[1721431054028,5.0103,3520.3,3519.7,0.04914544]
[1721431054516,5.0103,3520.3,3519.7,2.60616544]
[1721431056721,5.0103,3520.3,3519.8,2.55695]
[1721431057118,5.0103,3520.3,3519.9,0.04903521]
[1721431059435,5.0103,3520.3,3519.6,2.55706]
[1721431059610,5.0103,3520.3,3519.7,0.04914544]
[1721431059808,5.0103,3520.3,3519.7,2.557]
[1721431060013,5.0103,3520.3,3519.8,0.04909032]
[1721431060247,5.0103,3520.3,3519.7,2.557]
[1721431060436,5.0103,3520.3,3519.8,0.04909032]
[1721431060622,5.0103,3520.3,3519.7,2.557]
[1721431060824,5.0103,3520.3,3519.8,0.04909032]
[1721431061014,5.0103,3520.3,3519.7,2.557]
[1721431061214,5.0103,3520.3,3519.8,0.04909032]
[1721431061417,5.0103,3520.3,3519.7,2.557]
[1721431061652,5.0103,3520.3,3519.8,0.04909032]
[1721431061849,5.0103,3520.3,3519.7,2.557]
[1721431062151,5.0103,3520.3,3519.8,0.04909032]
[1721431062663,5.0103,3520.3,3519.9,0.04903521]
[1721431063151,2.55668,3520.2,3519.7,2.557]
[1721431063327,2.55668,3520.2,3520.0,0.0489801]
[1721431063657,2.55668,3520.2,3520.1,0.04892729]
[1721431064042,2.55668,3520.2,3519.5,2.55715]
[1721431064222,3.60368,3520.2,3520.1,0.04892729]
[1721431064423,3.60368,3520.2,3519.5,2.55715]
[1721431064655,3.60368,3520.2,3519.6,0.04920286]
[1721431065342,2.55675,3520.1,3519.6,0.04920286]
[1721431070688,2.55682,3520.0,3519.6,0.04920286]
[1721431071049,2.55682,3520.0,3519.4,2.55724]
[1721431071249,2.55682,3520.0,3519.5,0.04925799]
[1721431072500,2.2587,3519.9,3519.5,0.04925799]
[1721431077603,2.2587,3519.9,3519.5,2.60642799]
[1721431079616,2.2587,3519.9,3519.5,0.04925799]
[1721431079969,2.2587,3519.9,3519.3,3.60426]
[1721431080304,2.2587,3519.9,3519.4,3.3202966]
[1721431080510,4.81559,3519.9,3519.5,0.98776356]
[1721431080702,4.81559,3519.9,3519.4,0.04932285]
[1721431080908,4.81559,3519.9,3519.6,0.04921259]
[1721431081211,4.81559,3519.9,3519.5,0.04926772]
[1721431081375,4.81559,3519.9,3519.7,0.04915747]
[1721431081574,4.81559,3519.9,3519.6,0.04921259]
[1721431081774,4.81559,3519.9,3519.8,0.04910236]
[1721431081989,4.81559,3519.9,3519.7,0.04915747]
[1721431082182,4.81559,3519.9,3519.8,0.04910236]
[1721431082591,4.81559,3519.9,3519.4,2.55723]
[1721431082866,4.81559,3519.9,3519.1,1.908836]
[1721431082867,4.81559,3519.9,3519.1,1.45600036]
[1721431083072,2.55703,3519.7,3519.2,0.04943311]
[1721431083597,2.55703,3519.7,3519.3,2.46953968]
[1721431083774,2.55703,3519.7,3519.4,0.98780791]
[1721431083975,2.55703,3519.7,3519.4,0.04932285]
[1721431084393,4.81559,3519.9,3519.4,0.04932285]
[1721431084707,2.55697,3519.8,3519.4,0.04932285]
[1721431086113,2.2587,3519.9,3519.5,1.047]
[1721431086278,2.2587,3519.9,3519.6,0.22142465]
[1721431086500,2.2587,3519.9,3519.6,0.27063724]
[1721431087223,4.81563,3519.9,3519.6,0.27063724]
[1721431087409,4.81563,3519.9,3519.6,0.04921259]
[1721431087809,4.81563,3519.9,3519.3,4.7222336]
[1721431088011,4.81563,3519.9,3519.7,0.04915747]
[1721431088354,2.2587,3519.9,3519.8,0.04910236]
[1721431088635,2.2587,3519.9,3519.4,2.55725]
[1721431088934,2.2587,3519.9,3519.5,1.82437159]
[1721431089250,2.2587,3519.9,3519.5,0.83663552]
[1721431094854,2.4341,3520.2,3519.7,1.047]
[1721431095173,2.4341,3520.2,3519.8,2.60605176]
[1721431095319,2.4341,3520.2,3519.8,3.53554972]
[1721431095755,2.4341,3520.2,3519.9,1.047]
[1721431095934,2.4341,3520.6,3520.1,3.60374]
[1721431096131,2.4341,3520.6,3520.1,2.55674]
[1721431096330,2.4341,3520.6,3520.2,0.04887331]
[1721431097140,2.4341,3520.6,3520.0,2.5568]
[1721431097341,2.4341,3520.6,3520.3,0.04881706]
[1721431097570,2.4341,3520.6,3520.0,2.5568]
[1721431097765,2.4341,3520.6,3520.4,0.04876196]
[1721431097935,2.4341,3520.6,3520.0,2.5568]
[1721431098446,2.4341,3520.6,3520.1,0.04892727]
[1721431099052,2.4341,3520.6,3520.1,2.60565727]
[1721431100589,2.4341,3520.6,3520.2,2.55666]
[1721431101097,2.4341,3520.6,3520.3,0.04880332]
[1721431104104,2.4341,3520.6,3520.0,5.11355]
[1721431104307,2.4341,3520.6,3520.4,0.04871792]
[1721431104617,2.4341,3520.6,3520.0,5.11355]
[1721431104812,2.4341,3520.6,3520.5,0.04866282]
[1721431104999,2.4341,3520.6,3520.1,2.55674]
[1721431105185,2.4341,3520.6,3520.5,0.04866282]
[1721431105725,2.4341,3520.6,3520.1,2.55674]
[1721431105919,2.4341,3520.6,3520.5,0.04866282]
[1721431106091,2.4341,3520.6,3520.1,2.55674]
[1721431106292,2.4341,3520.6,3520.5,0.04866282]
[1721431106588,2.4341,3520.6,3520.1,2.55674]
[1721431107216,2.4341,3520.6,3520.2,0.04882812]
[1721431114916,4.99049,3520.6,3520.2,0.04882812]
[1721431115141,2.55646,3520.5,3520.2,0.04882812]
[1721431115337,2.55646,3520.5,3519.9,2.55682]
[1721431115503,2.55646,3520.5,3520.3,0.04877302]
[1721431115701,2.55658,3520.4,3519.8,2.55695]
[1721431115944,6.817947,3520.5,3520.4,0.04871792]
[1721431116120,2.55658,3520.4,3519.8,2.55695]
[1721431116523,2.55661,3520.3,3519.9,0.04899686]
[1721431117029,2.55661,3520.3,3519.6,12.45412]
[1721431117230,2.55661,3520.3,3520.0,0.04894175]
[1721431117433,2.55661,3520.3,3519.7,2.55702]
[1721431117633,2.55661,3520.3,3520.1,0.04888664]
[1721431117948,2.55661,3520.3,3520.2,0.04883154]
[1721431118440,2.55661,3520.3,3519.8,2.55695]
[1721431118633,2.55661,3520.3,3520.2,0.04883154]
[1721431118830,2.55661,3520.3,3519.8,2.55695]
[1721431119007,2.55661,3520.3,3520.2,0.04883154]
[1721431119205,2.55661,3520.3,3519.8,2.55695]
[1721431119420,2.55661,3520.3,3520.2,0.04883154]
[1721431119637,2.55661,3520.3,3519.8,2.55695]
[1721431119813,2.55661,3520.3,3520.2,0.04883154]
[1721431120027,2.55661,3520.3,3519.8,2.55695]
[1721431120206,2.55661,3520.3,3520.2,0.04883154]
[1721431120412,2.55661,3520.3,3519.8,2.55695]
[1721431120607,2.55661,3520.3,3520.2,0.04883154]
[1721431120820,2.55661,3520.3,3519.8,2.55695]
[1721431121021,2.55661,3520.3,3520.2,0.04883154]
[1721431121213,4.91156,3520.5,3519.9,2.55688]
[1721431121546,4.91143,3520.7,3519.8,7.33355]
[1721431121733,4.91143,3520.7,3520.0,2.60574175]
[1721431122045,2.5564,3520.6,3520.0,2.5568]
[1721431122250,2.5564,3520.6,3520.1,0.04888664]
[1721431124063,2.3551,3520.7,3520.1,2.60561664]
[1721431125058,4.91141,3520.7,3520.1,2.60561664]
[1721431130549,2.55631,3520.7,3520.1,2.60561664]
[1721431132593,5.26669277,3520.9,3520.2,2.55665]
[1721431132793,2.55624,3520.8,3520.2,2.55665]
[1721431132999,2.55624,3520.8,3520.3,0.048765]
[1721431141481,2.3757,3520.6,3520.3,0.048765]
[1721431141681,2.55652,3520.4,3520.3,0.048765]
[1721431141862,2.55652,3520.4,3519.8,2.55696]
[1721431142064,4.93222,3520.4,3519.6,7.34]
[1721431142296,3.75430528,3520.8,3519.6,7.34]
[1721431142297,2.3757,3520.2,3519.6,7.34]
[1721431142565,2.74846377,3520.2,3519.7,0.04907792]
[1721431142802,1.047,3520.0,3519.7,0.04907792]
[1721431143017,1.047,3520.0,3519.4,2.55724]
[1721431143178,3.60382,3520.0,3519.4,2.55724]
[1721431143378,3.60382,3520.0,3519.5,0.04918817]
[1721431145507,2.55682,3520.0,3519.5,0.04918817]
[1721431147078,2.55705,3519.7,3519.5,0.04918817]
[1721431147275,2.5571,3519.6,3519.5,0.04918817]
[1721431147513,2.5571,3519.6,3519.5,0.04924882]
[1721431148217,2.5571,3519.6,3518.9,9.89761]
[1721431148417,2.5571,3519.6,3519.5,0.04924882]
[1721431148912,2.5571,3519.6,3519.5,0.04925912]
[1721431149086,2.5571,3519.6,3518.9,9.89761]
[1721431149288,2.5571,3519.6,3519.0,1.593996]
[1721431149616,2.5571,3519.6,3519.0,1.64353079]
[1721431149795,2.55719,3519.5,3519.0,1.64353079]
[1721431157212,2.55719,3519.5,3519.0,0.04953479]
[1721431157412,4.92299,3519.5,3519.0,0.04953479]
[1721431157612,4.92299,3519.5,3518.9,2.55761]
[1721431157849,2.55725,3519.4,3519.1,0.04947965]
[1721431158023,2.55725,3519.4,3519.0,0.04953479]
[1721431158224,2.55725,3519.4,3518.7,8.6001]
[1721431158552,2.55725,3519.4,3519.1,0.04947965]
[1721431158842,2.55725,3519.4,3518.8,4.20133508]
[1721431159050,2.55725,3519.4,3519.2,0.04944911]
[1721431159251,2.55725,3519.4,3518.8,4.15169]
[1721431159428,2.55725,3519.4,3519.3,0.04939398]
[1721431159945,2.55725,3519.4,3518.8,2.55768]
[1721431160154,2.55725,3519.4,3519.3,0.04939398]
[1721431160450,2.55725,3519.4,3518.8,2.55768]
[1721431160653,2.55725,3519.4,3519.3,0.04939398]
[1721431160817,2.55725,3519.4,3518.8,2.55768]
[1721431161017,2.55725,3519.4,3519.3,0.04939398]
[1721431161330,2.55725,3519.4,3518.8,2.55768]
[1721431161543,2.55725,3519.4,3518.9,0.604228]
[1721431162053,2.55678,3520.1,3519.0,0.04955939]
[1721431162054,4.92327,3519.1,3519.0,0.04955939]
[1721431162421,4.92327,3519.1,3518.5,7.34]
[1721431162626,4.92327,3519.1,3519.0,0.04798227]
[1721431162942,4.92327,3519.1,3518.5,7.34]
[1721431162943,2.55755,3519.0,3518.5,7.34]
[1721431163255,2.55755,3519.0,3518.6,1.217076]
[1721431165639,2.55755,3519.0,3518.5,2.5579]
[1721431166661,2.55755,3519.0,3518.4,2.2728]
[1721431167156,2.55789,3518.6,3518.1,7.34]
[1721431167360,2.55789,3518.6,3517.9,3.60529]
[1721431167558,2.55789,3518.6,3518.0,1.592026]
[1721431168080,2.55789,3518.6,3518.0,4.150296]
[1721431169653,2.55789,3518.6,3518.0,1.592026]
[1721431169962,2.55791,3518.5,3518.0,1.592026]
[1721431171066,2.55791,3518.5,3518.1,0.04853021]
[1721431171467,4.94761,3518.5,3518.1,0.04853021]
[1721431171689,4.94761,3518.5,3517.9,2.55833]
[1721431171890,4.94761,3518.5,3518.2,0.04847504]
[1721431172066,4.94761,3518.5,3518.0,1.231493]
[1721431172273,4.94761,3518.5,3518.3,0.04841987]
[1721431172466,4.94761,3518.5,3517.9,2.55833]
[1721431172670,4.94761,3518.5,3518.4,0.04836471]
[1721431172871,4.94761,3518.5,3517.9,2.55833]
[1721431173072,4.94761,3518.5,3518.4,0.04836471]
[1721431173272,4.94761,3518.5,3517.9,2.55833]
[1721431173472,4.94761,3518.5,3518.4,0.04836471]
[1721431173687,4.94761,3518.5,3517.9,2.55833]
[1721431173883,4.94761,3518.5,3518.4,0.04836471]
[1721431174084,4.94761,3518.5,3517.9,2.55833]
[1721431174293,4.94761,3518.5,3518.4,0.04836471]
[1721431174802,4.94761,3518.5,3517.9,4.150376]
[1721431175001,4.94761,3518.5,3518.4,0.04836471]
[1721431175306,4.94761,3518.5,3517.9,4.150376]
[1721431175478,2.3897,3518.5,3518.4,0.04836471]
[1721431175810,2.3897,3518.8,3518.4,1.09536471]
[1721431175992,4.94739,3518.8,3518.4,1.09536471]
[1721431176510,4.94739,3518.8,3518.4,1.047]
[1721431176914,4.94739,3518.8,3518.5,0.04830955]
[1721431177317,4.94717,3519.2,3518.5,2.55783]
[1721431177503,2.55754,3519.0,3518.6,0.0482544]
[1721431178397,2.55762,3518.9,3518.6,0.0482544]
[1721431178612,2.55762,3518.9,3518.2,3.60511]
[1721431178782,2.55762,3518.9,3518.7,0.04819925]
[1721431178783,2.3897,3518.8,3518.7,0.04819925]
[1721431178983,2.3897,3518.8,3518.3,2.55804]
[1721431179186,2.3897,3518.8,3518.7,0.04819925]
[1721431179384,2.3897,3518.8,3518.3,2.55804]
[1721431179734,2.3897,3518.8,3518.7,0.04819925]
[1721431179883,2.3897,3518.8,3517.8,2.55839]
[1721431180081,2.55776,3518.7,3518.0,2.55822]
[1721431180329,2.55776,3518.7,3518.0,4.045541]
[1721431180526,3.60476,3518.7,3518.0,4.045541]
[1721431180713,2.55783,3518.6,3518.0,4.045541]
[1721431180900,2.3897,3518.5,3518.0,4.045541]
[1721431181831,2.3897,3518.7,3518.1,1.047]
[1721431182128,2.3897,3519.0,3518.4,1.047]
[1721431182327,4.94729,3519.0,3518.4,3.60496]
[1721431182907,4.94729,3519.0,3518.2,0.2534321]
[1721431182908,2.55761,3518.9,3518.2,2.8115021]
[1721431183124,3.4367,3519.0,3518.2,0.2534321]
[1721431183293,2.55783,3518.7,3518.0,2.55825]
[1721431185432,2.55784,3518.6,3518.0,2.55825]
[1721431186131,2.55784,3518.6,3518.1,0.04697632]
[1721431188313,5.11543,3518.8,3518.1,0.04697632]
[1721431188846,2.3638,3518.5,3518.1,0.04697632]
[1721431189453,2.3638,3518.5,3518.2,0.04697155]
[1721431189753,2.3638,3518.5,3518.0,2.55824]
[1721431189920,2.3638,3518.5,3518.3,0.04691638]
[1721431190260,2.3638,3518.5,3518.4,0.04686122]
[1721431190570,2.3638,3518.5,3518.1,2.55819]
[1721431191049,2.3638,3518.5,3518.2,0.04697155]
[1721431191410,5.1161,3518.3,3518.2,0.04697155]
[1721431191646,2.55826,3518.1,3517.3,7.34]
[1721431191874,2.55835,3517.9,3517.3,2.55876]
[1721431192054,2.55835,3517.9,3517.4,0.04742329]
[1721431193622,2.55835,3517.9,3517.4,1.09442329]
[1721431194322,2.55826,3518.1,3517.4,4.15923262]
[1721431196067,2.55826,3518.1,3517.5,2.55858]
[1721431196361,2.55826,3518.1,3517.5,2.6059481]
[1721431199563,2.55826,3518.1,3517.6,2.55856]
[1721431199773,2.55813,3518.2,3517.6,2.55856]
[1721431199944,2.55813,3518.2,3517.7,0.04731903]
[1721431206310,4.92186,3518.3,3517.8,2.55836]
[1721431206311,2.3638,3518.3,3517.8,2.55836]
[1721431206517,2.55789,3518.6,3518.2,2.55808]
[1721431206518,2.3638,3518.6,3518.2,2.55808]
[1721431206670,2.55766,3518.9,3518.2,2.55808]
[1721431206869,2.55766,3518.9,3518.3,0.04549141]
[1721431207072,2.55769,3518.8,3518.3,0.04549141]
[1721431209311,2.55776,3518.7,3518.3,0.04549141]
[1721431209610,2.55783,3518.6,3518.3,0.04549141]
[1721431209814,2.55783,3518.6,3518.1,2.55819]
[1721431209970,1.047,3518.7,3518.4,0.04543625]
[1721431210171,3.00329331,3518.8,3518.1,2.55819]
[1721431210375,2.55784,3518.6,3518.2,0.04554658]
[1721431210608,2.55784,3518.6,3518.0,2.55827]
[1721431210794,2.55784,3518.6,3518.3,0.04549141]
[1721431211011,2.55784,3518.6,3518.1,2.55818]
[1721431211185,2.55784,3518.6,3518.4,0.04543625]
[1721431211392,2.55784,3518.6,3518.1,2.55818]
[1721431211593,2.55784,3518.6,3518.2,0.04551278]
[1721431215723,1.047,3518.7,3518.2,0.04551278]
[1721431216011,3.00329331,3518.8,3518.2,0.04551278]
[1721431216511,2.55776,3518.7,3518.2,0.04551278]
[1721431222013,3.00329331,3518.8,3518.2,0.04551278]
[1721431222014,3.00327331,3518.8,3518.2,2.60362278]
[1721431222219,3.00327331,3518.8,3518.2,5.03962278]
[1721431222432,3.00327331,3518.8,3518.3,2.55804]
[1721431222720,0.44558331,3518.8,3518.3,2.60203837]
[1721431224488,0.44558331,3518.8,3518.5,2.55785]
[1721431224688,5.2597,3519.4,3518.4,2.6018932]
[1721431224914,1.047,3519.2,3518.6,0.04383289]
[1721431225218,0.44553316,3519.0,3518.5,2.60172736]
[1721431225388,0.44553316,3519.0,3518.7,0.04373705]
[1721431225589,0.44553316,3519.0,3518.5,2.55788]
[1721431225922,0.44553316,3519.0,3518.6,0.04378361]
[1721431229344,2.59641828,3518.9,3518.6,0.04378361]
[1721431229643,2.59641828,3518.9,3518.1,7.34]
[1721431229644,4.89266,3518.7,3518.1,7.34]
[1721431229842,2.55769,3518.8,3518.7,0.04372846]
[1721431230004,2.55769,3518.8,3518.2,2.55811]
[1721431230206,2.55769,3518.8,3518.3,0.04394679]
[1721431231508,2.5578,3518.7,3518.3,0.04394679]
[1721431231727,2.5578,3518.7,3518.3,0.07960344]
[1721431232035,2.5578,3518.7,3518.1,7.34]
[1721431232036,2.3349,3518.5,3518.1,7.34]
[1721431232263,2.3349,3518.5,3517.6,9.89854]
[1721431232264,2.55809,3518.3,3517.6,9.89854]
[1721431232546,2.55809,3518.3,3517.2,12.3489]
[1721431232547,2.55842,3517.8,3517.2,12.3489]
[1721431232728,2.55842,3517.8,3517.2,6.95059351]
[1721431232906,2.55842,3517.8,3517.2,5.0089]
[1721431233239,3.60531,3518.0,3517.2,5.0089]
[1721431233605,3.60531,3518.0,3517.3,2.55877]
[1721431233803,2.55831,3518.0,3517.4,2.5587]
[1721431234735,4.89295,3518.3,3517.4,1.047]
[1721431235056,2.55813,3518.2,3517.5,2.90833]
[1721431235211,2.55813,3518.2,3517.5,2.55862]
[1721431235904,5.93995,3518.3,3517.5,2.55862]
[1721431236113,3.6052,3518.1,3517.3,2.55876]
[1721431237005,2.55839,3517.9,3517.3,2.55876]
[1721431238372,2.5582,3518.1,3517.4,2.5587]
[1721431238522,2.55827,3518.0,3517.4,2.5587]
[1721431238707,2.55834,3517.9,3517.2,2.55879]
[1721431239348,2.55834,3517.9,3517.3,2.55878]
[1721431239807,4.97241,3517.8,3517.1,5.11779]
[1721431240011,2.55849,3517.7,3517.1,2.55887]
[1721431241815,2.414,3517.8,3517.2,2.55885]
[1721431242043,2.414,3517.8,3517.2,3.404523]
[1721431244469,2.414,3517.8,3517.3,2.55877]
[1721431245275,2.55849,3517.7,3517.1,3.60586]
[1721431245979,2.55849,3517.7,3517.1,2.55886]
[1721431246281,2.55849,3517.7,3517.2,0.07779428]
[1721431246433,2.55864,3517.5,3517.2,0.07779428]
[1721431246639,2.55864,3517.5,3516.8,7.34]
[1721431246640,2.55878,3517.3,3516.8,7.34]
[1721431247948,2.55878,3517.3,3516.8,9.89913]
[1721431248257,4.85351,3517.4,3516.8,10.94613]
[1721431248460,4.85351,3517.4,3516.8,9.89913]
[1721431248778,4.85351,3517.4,3516.8,2.55913]
[1721431251675,4.85351,3517.4,3516.8,3.60613]
[1721431256612,4.85351,3517.4,3516.8,2.55913]
[1721431256772,5.67122605,3517.4,3516.8,2.55913]
[1721431259091,4.85351,3517.4,3516.8,2.55913]
[1721431261083,4.85351,3517.4,3516.9,0.07675176]
[1721431261299,2.55878,3517.3,3516.9,0.07675176]
[1721431263556,2.55878,3517.3,3516.7,2.5592]
[1721431263762,2.55878,3517.3,3517.0,0.07671387]
[1721431264006,2.55878,3517.3,3516.7,2.5592]
[1721431264300,2.55878,3517.3,3516.8,2.55913]
[1721431264499,2.55865,3517.5,3516.9,2.55906]
[1721431264668,2.55851,3517.7,3517.0,1.047]
[1721431264876,2.55851,3517.7,3517.1,2.55891]
[1721431265407,2.55851,3517.7,3517.2,0.07661863]
[1721431267518,2.55856,3517.6,3517.2,0.07661863]
[1721431267898,2.55856,3517.6,3517.0,1.047]
[1721431268214,2.55856,3517.6,3517.3,0.07654924]
[1721431268414,2.55856,3517.6,3517.0,1.047]
[1721431268578,2.55856,3517.6,3517.4,0.07649303]
[1721431268918,2.55856,3517.6,3517.5,0.07643568]
[1721431269277,2.55856,3517.6,3517.0,1.047]
[1721431269476,2.55856,3517.6,3517.5,0.07643797]
[1721431269719,2.55856,3517.6,3517.0,1.047]
[1721431269923,2.55856,3517.6,3517.5,0.0764374]
[1721431270089,2.55856,3517.6,3517.0,5.3596324]
[1721431270291,2.55856,3517.6,3517.5,0.0764374]
[1721431270475,2.55856,3517.6,3517.0,3.60598]
[1721431270681,2.55856,3517.6,3517.5,0.07643625]
[1721431271027,2.55856,3517.6,3517.0,3.60598]
[1721431271205,2.55856,3517.6,3517.0,5.3596294]
[1721431271413,2.55856,3517.6,3517.1,0.07666109]
[1721431279126,2.55842,3517.8,3517.1,2.63557109]
[1721431279282,2.5583,3518.0,3517.2,1.047]
[1721431279483,5.55834,3517.9,3517.3,2.3338]
[1721431279790,5.55834,3517.9,3517.3,4.9691009]
[1721431280832,5.55834,3517.9,3517.3,5.82659999]
[1721431281046,5.55834,3517.9,3517.3,4.9691009]
[1721431282603,2.55842,3517.8,3517.3,4.9691009]
[1721431282804,2.55842,3517.8,3517.3,0.0765309]
[1721431283004,2.55842,3517.8,3517.2,2.55885]
[1721431283226,2.55842,3517.8,3517.3,0.0765309]
[1721431283507,2.55842,3517.8,3517.2,2.55885]
[1721431283851,3.0,3517.9,3517.3,2.6353009]
[1721431284017,2.55831,3518.0,3517.3,2.6353009]
[1721431284343,1.047,3518.0,3517.3,0.0765309]
[1721431284648,3.60532,3518.0,3517.1,4.89266]
[1721431284832,2.55834,3517.9,3517.3,2.55877]
[1721431285207,2.55834,3517.9,3517.4,0.07647469]
[1721431285544,3.00400582,3517.9,3517.4,0.07647469]
[1721431285909,0.44566582,3517.9,3517.4,2.63517469]
[1721431287549,0.44566582,3517.9,3517.5,2.4174]
[1721431287713,0.44566582,3517.9,3517.6,2.55851]
[1721431288044,0.44566582,3517.9,3517.6,2.63486025]
[1721431290140,1.78755232,3517.7,3517.6,0.07635025]
[1721431290345,11.86799232,3517.7,3517.6,0.07635025]
[1721431290508,11.86799232,3517.7,3516.1,2.4174]
[1721431290509,2.55887,3517.2,3516.1,2.4174]
[1721431290707,3.452,3517.1,3516.1,2.4174]
[1721431290930,3.452,3517.1,3516.2,0.06220913]
[1721431292440,6.01098,3517.1,3516.2,0.06220913]
[1721431292753,1.047,3516.7,3516.2,0.06220913]
[1721431292956,1.047,3516.7,3516.3,0.24796091]
[1721431293317,1.047,3516.7,3516.4,0.06209665]
[1721431293644,1.047,3516.7,3516.3,0.24796091]
[1721431293810,1.047,3516.7,3516.4,0.06209665]
[1721431294011,1.047,3516.7,3516.3,0.24796091]
[1721431294444,1.047,3516.7,3516.4,0.06209665]
[1721431294847,1.047,3516.7,3516.5,0.06204041]
[1721431295147,1.047,3516.7,3516.3,0.24796091]
[1721431295346,1.047,3516.7,3516.6,0.06198418]
[1721431295646,1.047,3516.7,3516.3,0.24796091]
[1721431296151,1.047,3516.7,3516.4,0.06209665]
[1721431296607,1.047,3516.7,3516.5,0.06204041]
[1721431296807,1.047,3516.7,3516.3,0.24796091]
[1721431297248,1.047,3516.7,3516.4,0.06209665]
[1721431297410,1.047,3516.7,3516.3,0.24796091]
[1721431297751,1.047,3516.7,3516.4,0.06209665]
[1721431297916,1.047,3516.7,3516.3,0.24796091]
[1721431298253,1.047,3516.7,3516.5,0.06204041]
[1721431298412,1.047,3516.7,3516.4,0.06209665]
[1721431298620,1.047,3516.7,3516.6,0.06198418]
[1721431298826,1.047,3516.7,3516.5,0.06204041]
[1721431299032,1.047,3516.7,3516.6,0.06198418]
[1721431299439,1.047,3516.7,3516.3,0.24796091]
[1721431299957,1.047,3516.7,3516.4,0.06209665]
[1721431300158,1.047,3516.5,3516.4,0.06209665]
[1721431300369,1.047,3516.5,3515.8,4.97726]
[1721431300656,1.047,3516.3,3515.9,0.753723]
[1721431300860,1.047,3516.5,3515.9,3.313513]
[1721431302415,1.047,3516.5,3515.9,5.873243]
[1721431302648,1.047,3516.5,3516.0,0.8290643]
[1721431302853,2.405,3517.1,3516.2,2.55951]
[1721431302854,4.96394,3517.1,3516.2,2.55951]
[1721431303013,1.047,3517.0,3516.2,2.55951]
[1721431303364,4.96394,3517.1,3516.2,2.55951]
[1721431303365,1.047,3516.8,3516.2,2.55951]
[1721431303569,1.047,3516.8,3516.3,0.58059743]
[1721431303928,2.405,3516.7,3516.3,0.58059743]
[1721431304871,2.405,3516.7,3516.0,0.8290643]
[1721431305044,1.047,3516.4,3516.0,0.8290643]
[1721431305554,2.405,3516.7,3516.0,0.8290643]
[1721431305931,4.96423,3516.7,3516.0,0.8290643]
[1721431306130,2.44378828,3516.6,3516.1,0.06233558]
[1721431306358,2.55951,3516.3,3516.1,0.06233558]
[1721431306536,1.047,3516.2,3515.5,7.34]
[1721431306742,2.55951,3516.3,3515.3,2.56019]
[1721431306743,4.95159,3516.1,3515.3,2.56019]
[1721431306940,4.95159,3516.1,3515.1,7.34]
[1721431306941,1.047,3515.7,3515.1,12.25526]
[1721431307166,2.3919,3516.1,3515.2,1.225526]